Cogmind - Beta 16.1 @@@ ROGUE MODE // 2026.04.15 @ 14:49:27 Player: SovietPaperclip Result: Self-destructed Performance ------------- Evolutions (3) 1500 Regions Visited (9) 1800 Robots Destroyed (100) 500 Value Destroyed (3706) 3706 Prototype IDs (24) 480 Alien Tech Used (0) 0 Bonus (738) 738 TOTAL SCORE: 8724 Bonus ------- High Alert Combat Kills 166 Follower Combat Kills 72 Entered Garrisons 200 Aligned with FarCom 300 Cogmind --------- Core Integrity 15/700 Matter 262/300 Energy 100/100 System Corruption 13% Temperature Cool (0) Movement Treading (321) Ox2 Location -7/Garrison Parts ------- > --- POWER (2) -------- (None) > --- PROPULSION (4) --- Armored Treads Armored Treads Advanced Treads > --- UTILITY (5) ------ Improved Heat Sink Cargo Storage Unit Machine Analyzer > --- WEAPON (2) ------- Autogun Powered Hammer > --- INVENTORY (30) --- Improved Treads Advanced Treads Improved Heat Sink Improved Sensor Array Improved Terrain Scanner Improved Terrain Scan Processor Improved Salvage Targeting Computer Transmission Jammer Hardened Medium Armor Plating Relay Coupler [NC] (22) Relay Coupler [Grunt] (31) Tractor Beam AWS/Autocannon Remote Datajack Plasma Cutter Peak State ------------ > --- POWER ------------ Heavy Ion Engine > --- PROPULSION ------- Improved Treads Advanced Treads Armored Huge Wheel > --- UTILITY ---------- Improved Heat Sink Coolant Injector Huge Storage Unit Improved Signal Interpreter Hacking Suite > --- WEAPON ----------- AWS/Gauss > --- INVENTORY -------- Light Treads Improved Treads Cargo Storage Unit Machine Analyzer Improved Terrain Scanner Improved Terrain Scan Processor Transmission Jammer Hardened Medium Armor Plating Hardened Medium Armor Plating Hardened Medium Armor Plating Improved Medium Armor Plating Tractor Beam Plasma Cannon Heavy Ion Cannon AWS/Autocannon Mini Grenade Launcher Remote Datajack Plasma Cutter Powered Hammer [Rating: 54] Favorites ----------- Power Improved Deuterium Engine Engine Improved Deuterium Engine Power Core Light Nuclear Core Propulsion Light Treads Treads Light Treads Wheel Armored Huge Wheel Utility Improved Signal Interpreter Device Improved Heat Sink Storage Large Storage Unit Processor Improved Signal Interpreter Hackware Hacking Suite Protection Improved Medium Armor Plating Weapon Gatling Laser Energy Gun Gatling Laser Energy Cannon Plasma Cannon Ballistic Gun Assault Rifle Launcher Mini Grenade Launcher Special Weapon Plasma Cutter Impact Weapon Maul Build | -11 -10 -10 -9 -9 -9 -8 -8 -7 -7 ------- Run | Yrd Mat Min Mat Min Exi Min Mat Fac Gar Slots Evolved 6 | . . . 2 . . . 2 2 . Power 1 | . . . . . . . . 1 . Propulsion 2 | . . . 1 . . . 1 . . Utility 3 | . . . 1 . . . 1 1 . Weapon . | . . . . . . . . . . Parts Attached 71 | 7 3 1 4 . . 3 6 32 15 Power 12 | 1 1 . 1 . . . 1 4 4 Engine 9 | 1 1 . 1 . . . 1 2 3 Core 3 | . . . . . . . . 2 1 Reactor . | . . . . . . . . . . Propulsion 21 | 2 1 1 1 . . . 2 9 5 Treads 18 | 2 1 1 1 . . . 2 6 5 Leg . | . . . . . . . . . . Wheel 3 | . . . . . . . . 3 . Hover . | . . . . . . . . . . Flight . | . . . . . . . . . . Utility 19 | 2 1 . . . . . 1 13 2 Device 8 | 1 . . . . . . 1 5 1 Storage 4 | 1 1 . . . . . . 2 . Processor 2 | . . . . . . . . 2 . Hackware 1 | . . . . . . . . 1 . Protection 4 | . . . . . . . . 3 1 Artifact . | . . . . . . . . . . Weapon 19 | 2 . . 2 . . 3 2 6 4 Energy Gun 5 | . . . 1 . . . . 3 1 Energy Cannon 2 | . . . . . . . . 2 . Ballistic Gun 6 | 2 . . . . . 2 1 . 1 Ballistic Cannon . | . . . . . . . . . . Launcher 2 | . . . . . . 1 . . 1 Special Weapon 2 | . . . . . . . 1 . 1 Impact Weapon 2 | . . . 1 . . . . 1 . Slashing Weapon . | . . . . . . . . . . Piercing Weapon . | . . . . . . . . . . Special Melee Weapon . | . . . . . . . . . . Unidentified Prototypes 1 | . . . . . . . 1 . . Corrupted Parts 1 | . . . . . . . . . 1 System Corruption 7 | . . . . . . . . . 7 Parts Lost 37 | . 6 . . . . 3 1 7 20 Power 11 | . 2 . . . . 1 . 2 6 Propulsion 13 | . 2 . . . . . 1 2 8 Utility 3 | . . . . . . 1 . 1 1 Weapon 10 | . 2 . . . . 1 . 2 5 Highest Loss Streak 8 | . 2 . . . . 2 1 2 8 To Critical Strikes . | . . . . . . . . . . Average Backups 14 | . 4 5 4 5 6 7 9 18 22 Power . | . . . . . . . . . . Propulsion 2 | . 1 2 1 1 1 1 . 3 6 Utility 6 | . 2 3 3 3 3 3 4 8 10 Weapon 3 | . . . . . 1 2 3 4 3 Tool/Special . | . . . . . . . . . . Unused Backups 12 | . . . . . . . . 2 10 Power . | . . . . . . . . . . Propulsion 1 | . . . . . . . . . 1 Utility 9 | . . . . . . . . 1 8 Weapon 2 | . . . . . . . . 1 1 Tool/Special . | . . . . . . . . . . Average Slot Usage (%) 81 | . 90 57 77 88 88 66 72 85 77 Engine 8 | . 12 . 10 11 11 6 8 9 4 Core 1 | . . . . . . . . 1 2 Treads 24 | . 25 28 32 33 33 33 35 16 27 Wheel 2 | . . . . . . . . 6 . Device 9 | . 14 14 11 11 11 . 6 11 5 Storage 8 | . 14 14 11 11 11 11 9 7 7 Processor 5 | . . . . . . . . 10 9 Protection 1 | . . . . . . . . 2 4 Energy Gun 4 | . . . 9 11 11 . . 3 5 Energy Cannon 3 | . . . . . . . . 8 1 Ballistic Gun 3 | . 22 . . . . 10 9 . 1 Impact Weapon 2 | . . . 3 11 11 . . 1 1 Peak Build Rating 54 | 7 8 4 11 12 16 26 33 54 50 Average Rating 31 | 5 6 4 9 11 13 13 19 46 40 On Entrance 13 | . 7 3 4 11 12 16 12 21 46 Avg Prop Armor Cover (%) 15 | . . . . . . . . 15 . Naked Turns . | . . . . . . . . . . Heaviest Build 176 | 13 30 21 34 34 34 37 35 176 175 Greatest Support 96 | 40 40 40 60 60 60 60 83 96 96 Greatest Overweight (x) 54 | . 1 . . . . . . 54 2 Average Overweight (x) 1 | . . . . . . . . 3 1 Largest Inventory Capacity 30 | 8 15 15 15 15 15 15 15 30 30 Average Capacity 21 | 7 12 15 15 15 15 15 15 25 30 Most Carried 30 | 2 8 5 5 6 11 12 15 30 30 Average Carried 16 | . 4 5 4 5 7 10 12 21 24 Final Capacity 30 | 8 15 15 15 15 15 15 15 30 30 Final Carried 30 | 2 6 5 5 6 11 10 13 30 17 Class Distribution -------------------- 63% | Mutant 25% | Hauler-Mutant 6% | Skirmisher Dominant Class ---------------- Mutant | -10/Materials Mutant | -10/Mines Mutant | -9/Materials Mutant | -9/Mines Mutant | -9/Exiles Mutant | -8/Mines Mutant | -8/Materials Mutant | -7/Factory Hauler-Mutant | -7/Garrison Resources | -11 -10 -10 -9 -9 -9 -8 -8 -7 -7 ----------- Run | Yrd Mat Min Mat Min Exi Min Mat Fac Gar Matter Collected 1683 | 324 242 . 11 . . 136 103 542 325 Remotely . | . . . . . . . . . . Salvage Created 3475 | 106 349 . 48 . . 184 103 1634 1051 Parts 186 | 8 28 . 1 . . 20 6 78 45 Haulers Intercepted . | . . . . . . . . . . Recyclers Shooed 2 | 1 1 . . . . . . . . Parts Field Recycled . | . . . . . . . . . . Retrieved Matter . | . . . . . . . . . . Parts Self-Destructed . | . . . . . . . . . . Prevented . | . . . . . . . . . . Parts Restored . | . . . . . . . . . . Kills | -11 -10 -10 -9 -9 -9 -8 -8 -7 -7 ------- Run | Yrd Mat Min Mat Min Exi Min Mat Fac Gar Combat Hostiles Destroyed 89 | . 8 . 1 . . 15 2 37 26 Guns 48 | . 8 . 1 . . 8 2 15 14 Cannons 19 | . . . . . . . . 14 5 AOE 14 | . . . . . . 7 . 3 4 Classes Destroyed 13 | 2 4 . 1 . . 1 1 3 1 Worker 3 | . 1 . . . . . . 2 . Builder 1 | . 1 . . . . . . . . Tunneler 3 | 2 . . . . . . . 1 . Recycler 1 | 1 . . . . . . . . . Operator 2 | . . . 1 . . . . 1 . Watcher 1 | . . . . . . . . 1 . Swarmer 31 | . 2 . . . . 14 . 7 8 Cutter 3 | . . . . . . . . . 3 Grunt 35 | . 6 . 1 . . . . 19 9 Duelist 1 | . . . . . . . . 1 . Sentry 12 | . . . . . . . 2 4 6 Hunter 1 | . . . . . . 1 . . . Programmer 6 | . . . . . . . . 6 . Best Kill Streak 9 | 3 3 . 1 . . 5 1 4 9 Combat Bots Only 9 | . 2 . 1 . . 5 1 4 9 Max Kills in Single Turn 3 | 1 1 . 1 . . 3 1 2 2 Gunslinging 1 | . . . . . . . . 1 . Exploded 3 | . . . . . . 3 . 2 2 Melee . | . . . . . . . . . . Uniques/NPCs Destroyed . | . . . . . . . . . . Combat | -11 -10 -10 -9 -9 -9 -8 -8 -7 -7 -------- Run | Yrd Mat Min Mat Min Exi Min Mat Fac Gar Hostile Shots Fired 887 | . 90 . 6 . . 44 8 286 453 Missed 285 | . 27 . 2 . . 12 4 88 152 Hits 602 | . 63 . 4 . . 32 4 198 301 Melee 4 | . . . . . . . . 2 2 Projectile 598 | . 63 . 4 . . 32 4 196 299 AOE 2 | . . . . . . . . . 2 Critical Strikes 8 | . 1 . . . . . . 4 3 Damage Taken 7128 | . 828 . 85 . . 319 102 2366 3428 Core 896 | . 181 . . . . 30 . 299 386 Absorbed by Shields . | . . . . . . . . . . Regen/Repaired (Parts) 140 | . . . . . . . . 140 . Core Remaining (%) 79 | 100 . 27 . . . 92 100 . . Volleys Fired 235 | 9 46 . 8 . . 5 4 93 70 Largest 2 | 2 2 . 1 . . 1 2 2 2 Hottest 160 | 40 40 . 45 . . 30 43 160 160 Shots Fired 414 | 18 82 . 8 . . 26 14 182 84 Gun 269 | 18 82 . 8 . . 21 14 76 50 Cannon 126 | . . . . . . . . 104 22 Launcher 17 | . . . . . . 5 . 2 10 Special 2 | . . . . . . . . . 2 Kinetic 158 | 18 82 . . . . 21 14 20 3 Thermal 229 | . . . . . . . . 160 69 Explosive 7 | . . . . . . 5 . 2 . Electromagnetic 18 | . . . 8 . . . . . 10 Robot Hit Streak 28 | 3 12 . 4 . . 7 7 16 28 Robot Miss Streak 5 | 2 3 . 4 . . 2 4 5 5 Penetration Max . | . . . . . . . . . . Secondary Targets 4 | . 1 . . . . . . 2 1 Max Gunslinging Chain 1 | . 1 . . . . . . 1 1 Autonomous 49 | . . . . . . 21 7 21 . Shots Hit Robots 305 | 9 55 . 7 . . 16 12 140 66 Core Hits 184 | 4 19 . 2 . . 18 5 76 60 Critical Kills 2 | . . . . . . . . 2 . Critical Parts Destroyed 3 | 1 . . . . . 2 . . . Critical Strikes 5 | 1 . . . . . 2 . 2 . Meltdown 2 | . . . . . . . . 2 . Destroy 3 | 1 . . . . . 2 . . . Melee Attacks 10 | . . . 2 . . . . 6 2 Impact 10 | . . . 2 . . . . 6 2 Slashing . | . . . . . . . . . . Piercing . | . . . . . . . . . . Sneak Attacks 2 | . . . 1 . . . . 1 . Combat Hostiles . | . . . . . . . . . . Follow-up Attacks . | . . . . . . . . . . Damage Inflicted 8209 | 119 721 . 194 . . 733 276 4148 2018 Guns 4337 | 119 721 . 67 . . 425 276 1697 1032 Cannons 2537 | . . . . . . . . 2081 456 Explosions 1035 | . . . 44 . . 308 . 160 523 Melee 293 | . . . 83 . . . . 210 . Ramming 7 | . . . . . . . . . 7 Kinetic 2061 | 119 721 . . . . 425 276 503 17 Thermal 4814 | . . . 44 . . . . 3275 1495 Explosive 468 | . . . . . . 308 . 160 . Electromagnetic 566 | . . . 67 . . . . . 499 Impact 293 | . . . 83 . . . . 210 . Slashing . | . . . . . . . . . . Piercing . | . . . . . . . . . . Highest Corruption 13 | . . . . . . . 1 5 13 Average Corruption 5 | . . . . . . . 1 2 8 Corruption Purged . | . . . . . . . . . . Corruption Blocked . | . . . . . . . . . . Effects 61 | . . . . . . . . 28 33 Message Errors 19 | . . . . . . . . 6 13 Matter Fused 15 | . . . . . . . . 7 8 Heat Flow Errors 3 | . . . . . . . . 1 2 Energy Discharges 6 | . . . . . . . . 3 3 Data Loss (minor) 11 | . . . . . . . . 7 4 Data Loss (major) 1 | . . . . . . . . . 1 Misfires 2 | . . . . . . . . 1 1 Alerts 1 | . . . . . . . . 1 . Weapon Failures 3 | . . . . . . . . 2 1 Overload Shots . | . . . . . . . . . . Overflow Damage 176 | . . . 73 . . . . 63 40 Projectiles 5 | . . . . . . . . 5 . Explosions 40 | . . . . . . . . . 40 Melee 131 | . . . 73 . . . . 58 . Knockbacks 2 | . . . 1 . . . . 1 . Impact 2 | . . . 1 . . . . 1 . Kinetic . | . . . . . . . . . . Secondary . | . . . . . . . . . . Self-Inflicted Damage 204 | . . . 37 . . 22 . . 145 Shots 10 | . . . 1 . . 1 . . 8 Rammed 2 | . . . . . . . . . 2 Targets Rammed 2 | . . . . . . . . . 2 Kicked . | . . . . . . . . . . Crushed . | . . . . . . . . . . Highest Temperature 356 | . 20 . 24 . . . . 326 356 Average Temperature 111 | . 3 . 11 . . . . 118 114 Received Heat Transfer 2235 | . 438 . 27 . . . 18 807 945 Effects 5 | . . . . . . . . 3 2 Energy Bleed 1 | . . . . . . . . . 1 Interference 4 | . . . . . . . . 3 1 Siege Activations . | . . . . . . . . . . Martial Activations . | . . . . . . . . . . Shielding Activations . | . . . . . . . . . . Robots Disrupted . | . . . . . . . . . . Combat Hostiles . | . . . . . . . . . . Robots Corrupted 4 | . . . 1 . . . . 2 1 Combat Hostiles 2 | . . . . . . . . 1 1 Parts Fried 4 | . . . . . . . . 3 1 Impact Corruptions 6 | . . . 3 . . . . 3 . Robots Melted 6 | . . . . . . . . 4 2 Combat Hostiles 6 | . . . . . . . . 4 2 Parts Melted 29 | . . . . . . . . 24 5 Heat Transferred 9117 | . . . 50 . . . . 5817 3250 Parts Sabotaged . | . . . . . . . . . . Parts Stolen . | . . . . . . . . . . Parts Stripped . | . . . . . . . . . . Power Chain Reactions 3 | . . . 1 . . . . . 2 Alert | -11 -10 -10 -9 -9 -9 -8 -8 -7 -7 ------- Run | Yrd Mat Min Mat Min Exi Min Mat Fac Gar Maximum Alert Level 2 | . . . . . . 1 . 1 2 Low Security (%) 75 | 100 100 100 100 100 . 87 100 89 . Level 1 13 | . . . . . . 12 . 10 42 Level 2 10 | . . . . . . . . . 57 Level 3 . | . . . . . . . . . . Level 4 . | . . . . . . . . . . Level 5 . | . . . . . . . . . . High Security . | . . . . . . . . . . Max Security . | . . . . . . . . . . Peak Influence 668 | 10 81 . 24 . . 264 47 322 668 Initial 224 | . . . . . . . 28 . 224 Average 145 | 1 36 . 2 . . 116 13 94 472 Influence Increases 2677 | 15 246 . 35 . . 496 105 1106 674 Destroy 0b10 Robot/C 1820 | . 160 . 20 . . 300 40 740 560 Destroy 0b10 Robot/NC 55 | 15 10 . 5 . . . . 25 . Destroy Leader 312 | . 30 . . . . 50 20 182 30 Allied During Kill 9 | . . . . . . . . . 9 Successful Hack 73 | . 15 . 5 . . . 13 40 . Disable Machine 180 | . . . . . . 105 30 45 . Anti-Garrison Action 50 | . . . . . . . . . 50 Destroy Structure 103 | . 1 . 5 . . 41 2 29 25 Lose Combat Pursuer 75 | . 30 . . . . . . 45 . Influence Decreases 2039 | 15 246 . 35 . . 422 179 785 357 Entered New Map 143 | . . . . . . . 46 . 97 Time Decay 1232 | 15 195 . 35 . . 262 133 592 . Lost Part 331 | . 51 . . . . 10 . 70 200 Lost Ally 70 | . . . . . . . . 10 60 Purge Threat 263 | . . . . . . 150 . 113 . Squads Dispatched 18 | . 4 . 1 . . . . 13 . Investigation 5 | . 2 . . . . . . 3 . Extermination 5 | . . . . . . . . 5 . Reinforcement 5 | . 2 . 1 . . . . 2 . Assault . | . . . . . . . . . . Garrison 3 | . . . . . . . . 3 . Intercept . | . . . . . . . . . . Searches Triggered . | . . . . . . . . . . Construction Impeded . | . . . . . . . . . . Haulers Reinforced 1 | . . . . . . . . 1 . Active Scanning Responses . | . . . . . . . . . . Cargo Convoy Interrupts . | . . . . . . . . . . Stealth | -11 -10 -10 -9 -9 -9 -8 -8 -7 -7 --------- Run | Yrd Mat Min Mat Min Exi Min Mat Fac Gar Distress Signals 3 | . 2 . . . . . 1 . . Communications Jammed . | . . . . . . . . . . Distress Signals . | . . . . . . . . . . Times Spotted 114 | . 18 . 4 . . 15 3 44 30 Peak Tracking Total 9 | . 6 . 3 . . 5 2 4 9 Tactical Retreats 5 | . 2 . . . . . . 3 . Traps | -11 -10 -10 -9 -9 -9 -8 -8 -7 -7 ------- Run | Yrd Mat Min Mat Min Exi Min Mat Fac Gar Traps Triggered 11 | . 4 . . . . . 2 2 3 Indirectly . | . . . . . . . . . . Trap Hack Attempts . | . . . . . . . . . . Triggered . | . . . . . . . . . . Disarmed . | . . . . . . . . . . Reprogrammed . | . . . . . . . . . . Reused . | . . . . . . . . . . Traps Extracted . | . . . . . . . . . . Installed . | . . . . . . . . . . Triggered . | . . . . . . . . . . Machines | -11 -10 -10 -9 -9 -9 -8 -8 -7 -7 ---------- Run | Yrd Mat Min Mat Min Exi Min Mat Fac Gar Machines Disabled 13 | . . . . . . 7 2 3 1 Max in Single Turn 2 | . . . . . . 2 1 2 1 Garrison Relay 1 | . . . . . . . . . 1 Machines Repaired . | . . . . . . . . . . Machines Dismantled 2 | . . . . . . . 1 . 1 Machines Sabotaged . | . . . . . . . . . . Overloaded Fab Kills . | . . . . . . . . . . Hacking | -11 -10 -10 -9 -9 -9 -8 -8 -7 -7 --------- Run | Yrd Mat Min Mat Min Exi Min Mat Fac Gar Machines Accessed 21 | . 2 . 1 . 2 1 1 14 . Terminals 15 | . 2 . 1 . . 1 1 10 . Fabricators 2 | . . . . . . . . 2 . Repair Stations 1 | . . . . . . . . 1 . Recycling Units . | . . . . . . . . . . Scanalyzers . | . . . . . . . . . . Garrison Access 1 | . . . . . . . . 1 . Total Hacks 54 | . 7 . 4 . 2 5 6 30 . Successful 25 | . 5 . 1 . 2 2 2 13 . Failed 28 | . 1 . 3 . . 3 4 17 . Catastrophic 8 | . 1 . 1 . . 1 . 5 . Database Lockouts 1 | . 1 . . . . . . . . Manual 26 | . 5 . 2 . 1 4 5 9 . Terminals 41 | . 7 . 4 . . 5 6 19 . Fabricators 6 | . . . . . . . . 6 . Repair Stations 3 | . . . . . . . . 3 . Recycling Units . | . . . . . . . . . . Scanalyzers . | . . . . . . . . . . Garrison Access 2 | . . . . . . . . 2 . Terminal Hacks 16 | . 5 . 1 . 2 2 1 5 . Record 1 | . . . . . 1 . . . . Part Schematic 3 | . 1 . . . . . . 2 . Level Access Points 1 | . . . . . . . 1 . . Branch Access Points 1 | . 1 . . . . . . . . Alert Level 1 | . . . . . . 1 . . . Unreport Threat 3 | . . . . . . 1 . 2 . Registered Components 2 | . 1 . . . . . . 1 . Zone Layout 3 | . 2 . 1 . . . . . . Proto ID Catalog 1 | . . . . . 1 . . . . Fabricator Hacks 3 | . . . . . . . . 3 . Network Status 1 | . . . . . . . . 1 . Load Schematic 1 | . . . . . . . . 1 . Build 1 | . . . . . . . . 1 . Repair Station Hacks 2 | . . . . . . . . 2 . Scan Component 1 | . . . . . . . . 1 . Repair 1 | . . . . . . . . 1 . Recycling Unit Hacks . | . . . . . . . . . . Scanalyzer . | . . . . . . . . . . Garrison Access Hacks 1 | . . . . . . . . 1 . Unlock Access 1 | . . . . . . . . 1 . Unauthorized Hacks 3 | . . . . . . . 1 2 . Terminals 3 | . . . . . . . 1 2 . Assimilate 1 | . . . . . . . . 1 . Botnet 2 | . . . . . . . 1 1 . Fabricators . | . . . . . . . . . . Repair Stations . | . . . . . . . . . . Recycling Units . | . . . . . . . . . . Scanalyzers . | . . . . . . . . . . Garrison Access . | . . . . . . . . . . Data Cores Recovered 1 | . . . . . . . . 1 . Used 1 | . . . . . . . . 1 . Hacking Detections 16 | . . . 1 . . 1 1 13 . Full Trace Events 2 | . . . . . . . . 2 . Feedback Events . | . . . . . . . . . . Feedback Blocked . | . . . . . . . . . . Robot Schematics Acquired . | . . . . . . . . . . Robots Built . | . . . . . . . . . . Authchips . | . . . . . . . . . . Time . | . . . . . . . . . . Total Robot Build Rating . | . . . . . . . . . . Part Schematics Acquired 3 | . 1 . . . . . . 2 . Parts Built 1 | . . . . . . . . 1 . Authchips . | . . . . . . . . . . Time 51 | . . . . . . . . 51 . Total Part Build Rating 1 | . . . . . . . . 1 . Part Studies Acquired . | . . . . . . . . . . Parts Repaired 1 | . . . . . . . . 1 . Time 38 | . . . . . . . . 38 . Parts Recycled . | . . . . . . . . . . Recycled Matter . | . . . . . . . . . . Retrieved Matter . | . . . . . . . . . . Retrieved Components . | . . . . . . . . . . Parts Scanalyzed . | . . . . . . . . . . Part Schematics Acquired . | . . . . . . . . . . Parts Damaged . | . . . . . . . . . . Bothacking | -11 -10 -10 -9 -9 -9 -8 -8 -7 -7 ------------ Run | Yrd Mat Min Mat Min Exi Min Mat Fac Gar Used RIF Installer . | . . . . . . . . . . Robots Hacked . | . . . . . . . . . . Non-combat . | . . . . . . . . . . Combat . | . . . . . . . . . . Robot Hacks Applied . | . . . . . . . . . . Relay Couplers Released 3 | . . . . . . . . . 3 Machine Destruction 3 | . . . . . . . . . 3 Fabnet Peak Effective % . | . . . . . . . . . . Robots Rewired 3 | . . . . . . . . . 3 Allies Hacked . | . . . . . . . . . . Hacks Repelled . | . . . . . . . . . . Allies | -11 -10 -10 -9 -9 -9 -8 -8 -7 -7 -------- Run | Yrd Mat Min Mat Min Exi Min Mat Fac Gar Total Allies 4 | . . . . . . . . 1 3 Largest Group 3 | . . . . . . . . 1 3 Highest-Rated Group 36 | . . . . . . . . 26 36 Highest-Rated Ally 26 | . . . . . . . . 26 12 Total Orders . | . . . . . . . . . . Ally Attacks 28 | . . . . . . . . . 28 Total Damage 260 | . . . . . . . . . 260 Kills 2 | . . . . . . . . . 2 Allies Corrupted . | . . . . . . . . . . Allies Melted . | . . . . . . . . . . Intel | -11 -10 -10 -9 -9 -9 -8 -8 -7 -7 ------- Run | Yrd Mat Min Mat Min Exi Min Mat Fac Gar Active Infowar (turns) 4918 | 14 498 51 321 302 418 1 . 2490 823 Sensors 1848 | . . . . . . . . 1848 . Seismic 1719 | 14 498 51 321 302 418 1 . 114 . Machine Analysis 2103 | . . . . . . . . 1280 823 Robot Analysis Total . | . . . . . . . . . . Derelict Logs Recovered . | . . . . . . . . . . Drone Launches . | . . . . . . . . . . Drone Recoveries . | . . . . . . . . . . Exploration | -11 -10 -10 -9 -9 -9 -8 -8 -7 -7 ------------- Run | Yrd Mat Min Mat Min Exi Min Mat Fac Gar Turns Passed 6619 | 99 498 51 321 302 418 568 402 2811 1149 Spaces Moved 3108 | 40 196 32 177 189 261 332 205 1345 331 Core 4 | 3 . . . . . . . 1 . Treads 1863 | 37 196 32 177 189 261 332 205 103 331 Legs . | . . . . . . . . . . Wheels 1241 | . . . . . . . . 1241 . Hover . | . . . . . . . . . . Flight . | . . . . . . . . . . Fastest Speed 50 | 50 160 160 160 160 160 160 160 145 241 Average Speed 173 | 151 172 160 160 160 160 160 160 163 264 Slowest Speed 2750 | 160 240 160 160 160 160 160 160 2750 321 Overloaded Moves . | . . . . . . . . . . Propulsion Burnouts . | . . . . . . . . . . Robots Hopped . | . . . . . . . . . . Potential Cave-ins . | . . . . . . . . . . Cave-ins Triggered . | . . . . . . . . . . Exploration Rate (%) 40 | 4 59 10 26 53 64 87 23 38 44 Regions Visited 9 Branch Regions 4 Pre-discovered Areas 1 | . . . . . 1 . . . . Known Exits Taken 3 | . 1 . . . . . 1 1 . Unknown Exits Taken 6 | 1 . 1 1 1 1 1 . . . Scrap Searched 1 | . . . . . . 1 . . . Spaces Dug 4 | . . . 1 . . . . 3 . Terrain Destroyed 95 | . . . 4 . . 49 4 26 12 Melee 4 | . . . 1 . . . . 3 . Projectile 37 | . . . . . . 21 4 12 . AOE 54 | . . . 3 . . 28 . 11 12 Terrain Rammed . | . . . . . . . . . . Walls Destroyed . | . . . . . . . . . . Machines Disabled . | . . . . . . . . . . Actions | -11 -10 -10 -9 -9 -9 -8 -8 -7 -7 --------- Run | Yrd Mat Min Mat Min Exi Min Mat Fac Gar Total 3901 | 57 275 32 201 189 262 365 262 1765 493 Wait 328 | . 23 . 10 . . 20 33 213 29 Move 3099 | 39 195 31 176 188 260 331 204 1344 331 Hop . | . . . . . . . . . . Pick Up 45 | 2 6 . 1 1 2 . 3 28 2 Fast Attach 35 | 7 1 . 3 . . 1 4 14 5 Attach 42 | . 2 1 1 . . 4 4 15 15 Detach 14 | . . . . . . 3 4 7 . Swap 30 | . 1 . . . . . 1 23 5 Drop 25 | . 1 . . . . 1 . 22 1 Fire 235 | 9 46 . 8 . . 5 4 93 70 Melee 10 | . . . 2 . . . . 6 2 Ram . | . . . . . . . . . . Kick . | . . . . . . . . . . Crush 2 | . . . . . . . . . 2 Escape Stasis 4 | . . . . . . . . . 4 Rewire 24 | . . . . . . . . . 24 Trap . | . . . . . . . . . . Miscellaneous 8 | . . . . . . . 5 . 3 Route ------- -11/Scrapyard -10/Materials (discovered 3 exits: *Mat / *Min x2) -10/Mines -9/Materials -9/Mines -9/Exiles -8/Mines -8/Materials (discovered 3 exits: *Fac x3) -7/Factory (discovered 4 exits: *Fac / *Low x2 / Gar) -7/Garrison (discovered 2 exits: [*Fac x2]) History --------- Turn | Location | Event 6 | -11/Scrapyard | Discovered new exit (range 16) 100 | -11/Scrapyard | Entered Materials 134 | -10/Materials | Identified exit to Mines 134 | -10/Materials | Central database locked down 316 | -10/Materials | Build established: Mutant 364 | -10/Materials | Discovered new exit (range 11) 578 | -10/Materials | Core integrity fell below 50% 598 | -10/Materials | Entered Mines 638 | -10/Mines | Discovered new exit (range 8) 649 | -10/Mines | Entered Materials 649 | -9/Materials | Evolved 2 slots: Propulsion x1, Utility x1 925 | -9/Materials | Discovered new exit (range 16) 970 | -9/Materials | Entered Mines 1264 | -9/Mines | Deemed a non-threat by the Exiles lab entrance 1266 | -9/Mines | Discovered new exit (range 5) 1272 | -9/Mines | Entered Exiles 1311 | -9/Exiles | Met 8R-AWN 1338 | -9/Exiles | Met EX-HEX 1381 | -9/Exiles | Met EX-BIN 1400 | -9/Exiles | Met EX-DEC 1412 | -9/Exiles | Learned location of Zion (-7) 1480 | -9/Exiles | Aligned with FarCom system 1482 | -9/Exiles | Given EX-Vault access code 1519 | -9/Exiles | Opened EX-Vault 1530 | -9/Exiles | Found AWS/Gauss 1534 | -9/Exiles | Found AWS/Autocannon 1569 | -9/Exiles | Warned to stay clear of 0b10 Research branches 1678 | -9/Exiles | Discovered new exit (range 10) 1690 | -9/Exiles | Stole two prototypes: AWS/Gauss, AWS/Autocannon 1690 | -9/Exiles | Entered Mines 2250 | -8/Mines | Discovered new exit (range 6) 2258 | -8/Mines | Entered Materials 2258 | -8/Materials | Evolved 2 slots: Propulsion x1, Utility x1 2375 | -8/Materials | Identified exit to Factory 2660 | -8/Materials | Entered Factory 2660 | -7/Factory | Evolved 2 slots: Power x1, Utility x1 2662 | -7/Factory | FarCom data flow suspended 2792 | -7/Factory | Fabricated Cargo Storage Unit? 3029 | -7/Factory | Discovered new exit (range 5) 3033 | -7/Factory | Identified exit to Lower Caves 3308 | -7/Factory | Discovered new exit (range 15) 3398 | -7/Factory | Discovered exit to Lower Caves (range 7) 3512 | -7/Factory | Identified exit to Factory 4068 | -7/Factory | AWS/Gauss suddenly broke down 4265 | -7/Factory | Repaired Adv. Treads? 4480 | -7/Factory | Build established: Skirmisher 5101 | -7/Factory | Garrison activated, responded to threat 5363 | -7/Factory | Build established: Hauler-Mutant 5469 | -7/Factory | Identified exit to Garrison 5471 | -7/Factory | Entered Garrison 5529 | -7/Garrison | Triggered checkpoint 5582 | -7/Garrison | Garrison Relay disabled 5771 | -7/Garrison | Triggered checkpoint 5784 | -7/Garrison | Core integrity fell below 50% 5835 | -7/Garrison | Discovered new exit (range 5) 6003 | -7/Garrison | Lost 3 allies 6020 | -7/Garrison | Triggered checkpoint 6050 | -7/Garrison | Core integrity fell below 20% 6084 | -7/Garrison | Lost 8 parts (1p4n3w) 6091 | -7/Garrison | Destroyed 9 combat bots 6111 | -7/Garrison | System corruption reached 10% 6196 | -7/Garrison | Discovered new exit (range 9) 6261 | -7/Garrison | Triggered checkpoint 6331 | -7/Garrison | Lost 8 parts (2p4n1u1w) 6611 | -7/Garrison | Triggered checkpoint 6620 | -7/Garrison | Self-destructed Last Messages --------------- 06303_ Acquired 18 matter. 06305_ Slammed into S-27 Virus. 06308_ Acquired Autogun. 06311_ S-27 Virus destroyed. 06312_ Acquired 18 matter. 06330_ Acquired 4 matter. 06348_ System corrupted: Heat flow error (+245). 06375_ System corrupted: Energy discharge (-22). 06398_ OC,T49NU45
/T
06414_ System corrupted: Matter fused (-10).
06433_ System corrupted: Energy discharge (-37).
06450_ System corrupted: Matter fused (-10).
06474_ System corrupted: Component data lost.
06531_ 5ZZ Q1JVSXNX=MBSE3MDCU3IF25CWJ7I1V
06546_ System corrupted: Component data lost.
06561_ System corrupted: Matter fused (-8).
06597_ 8IHWO<#JORAKDFIP>,O:UKIHDA0SO M